bitfinex-derivatives/quotes_ETHF0:USTF0_20250101
["timestamp","ask_amount","ask_price","bid_price","bid_amount"]
[1735749792339,0.29985,3341.8,3341.7,3.2078]
[1735749793028,1.07692397,3341.9,3341.5,0.29987]
[1735749793029,0.29987,3341.6,3341.5,0.29987]
[1735749793939,0.29987,3341.6,3341.5,0.76878939]
[1735749794342,0.29987,3341.6,3341.5,0.29987]
[1735749794733,1.07692397,3341.9,3341.4,0.8874]
[1735749794933,0.29986,3341.7,3341.6,0.29986]
[1735749796542,0.29985,3341.8,3341.7,0.29985]
[1735749797143,1.3341,3342.0,3341.5,1.07692397]
[1735749797443,0.29985,3341.9,3341.8,0.29984]
[1735749798440,0.8965,3342.0,3341.9,0.29984]
[1735749798643,0.46,3342.0,3341.9,0.29984]
[1735749798943,0.46,3342.0,3341.9,1.37676397]
[1735749799141,0.46,3342.0,3341.9,1.84546397]
[1735749801642,0.29982,3342.1,3342.0,0.29983]
[1735749803848,0.4587,3342.2,3341.9,0.4687]
[1735749804147,3.6596,3342.3,3342.2,0.29981]
[1735749804749,4.0915,3342.3,3342.2,0.29981]
[1735749805347,4.3913,3342.3,3342.2,0.29981]
[1735749806949,0.29983,3342.0,3341.9,0.29984]
[1735749807346,0.29983,3342.1,3342.0,0.29982]
[1735749808347,4.0915,3342.3,3341.9,0.4373]
[1735749808652,0.29984,3341.9,3341.8,0.29984]
[1735749811253,0.29983,3342.1,3342.0,0.29982]
[1735749820356,1.07692397,3342.1,3341.5,0.4373]
[1735749820560,3.50767,3341.6,3341.5,0.4373]
[1735749820757,3.2078,3341.6,3341.5,0.4373]
[1735749822146,3.2078,3341.6,3341.3,0.29989]
[1735749822349,0.29989,3341.4,3341.1,0.4486]
[1735749822751,0.435,3341.3,3341.1,0.4486]
[1735749822951,0.73489,3341.3,3341.1,0.4486]
[1735749824562,0.2999,3341.2,3341.1,0.4486]
[1735749824864,0.435,3341.3,3341.1,0.4486]
[1735749825062,0.73489,3341.3,3341.1,0.4486]
[1735749825761,0.2999,3341.2,3341.1,0.4486]
[1735749829472,4.71362397,3341.2,3339.6,5.43083677]
[1735749829657,4.71362397,3341.2,3339.9,1.07692397]
[1735749829658,1.07692397,3340.6,3339.9,1.07692397]
[1735749829861,3.2078,3340.8,3339.9,1.07692397]
[1735749829862,0.29999,3340.3,3339.9,1.07692397]
[1735749830169,0.29999,3340.3,3339.9,0.30001]
[1735749830371,0.30001,3340.1,3339.8,1.37695397]
[1735749830672,0.30001,3340.1,3339.8,42.17695397]
[1735749830969,0.4404,3340.2,3339.8,40.8]
[1735749830970,1.51732397,3340.2,3339.8,40.8]
[1735749831165,0.4404,3340.2,3339.7,3.2078]
[1735749831472,0.30004,3339.7,3339.4,0.30006]
[1735749831664,0.74045,3339.6,3339.5,1.09637198]
[1735749832166,0.439,3339.8,3339.7,0.30004]
[1735749832377,3.94819,3340.3,3339.9,0.30001]
[1735749832567,3.94819,3340.3,3340.0,0.30001]
[1735749832765,0.29999,3340.2,3340.1,0.01944801]
[1735749832964,0.439,3340.2,3340.1,0.01944801]
[1735749833368,0.439,3340.2,3340.1,0.48054801]
[1735749833565,0.439,3340.2,3340.1,0.78054801]
[1735749833867,3.6482,3340.3,3340.1,0.78054801]
[1735749834570,3.6482,3340.3,3340.1,0.31944801]
[1735749834773,3.6482,3340.3,3340.2,0.01944801]
[1735749836473,3.94818,3340.3,3340.2,0.01944801]
[1735749839669,0.74038,3340.3,3340.2,0.01944801]
[1735749844279,0.4404,3340.3,3338.9,47.47882582]
[1735749844474,3.2078,3339.8,3339.1,0.8745]
[1735749844674,0.4583,3339.7,3339.1,0.8745]
[1735749844875,0.30007,3339.4,3339.1,0.8745]
[1735749845173,0.30007,3339.4,3339.2,0.30008]
[1735749845368,0.30007,3339.4,3339.1,0.8745]
[1735749845675,0.30007,3339.4,3339.2,0.30008]
[1735749845878,0.30007,3339.4,3339.1,1.17459]
[1735749846174,0.4428,3339.6,3339.1,0.8745]
[1735749846479,0.30008,3339.2,3339.1,0.4351]
[1735749846872,3.47195582,3339.6,3338.9,44.3079]
[1735749847072,0.4427,3339.1,3338.9,3.2078]
[1735749847283,0.7284,3339.0,3338.9,3.2078]
[1735749847772,0.7284,3339.0,3338.9,3.50791]
[1735749847773,0.4283,3339.0,3338.9,3.50791]
[1735749848279,0.7284,3339.0,3338.9,3.2078]
[1735749848483,0.4283,3339.0,3338.9,3.2078]
[1735749848778,0.4283,3339.0,3338.9,3.50791]
[1735749848977,0.4283,3339.0,3338.9,3.2078]
[1735749849282,0.4283,3339.0,3338.9,3.50791]
[1735749849678,0.4427,3339.1,3338.9,3.50791]
[1735749850083,0.74279,3339.1,3339.0,0.4268]
[1735749850275,0.4427,3339.1,3339.0,0.4268]
[1735749850471,0.4427,3339.1,3338.9,3.2078]
[1735749850681,0.3001,3339.0,3338.9,3.2078]
[1735749850878,0.3001,3339.0,3338.9,3.50791]
[1735749851075,0.3001,3339.0,3338.9,3.2078]
[1735749851379,0.4427,3339.1,3338.7,0.72693]
[1735749851578,0.30012,3338.8,3338.7,0.72693]
[1735749852180,0.30012,3338.8,3338.7,0.4268]
[1735749852478,0.30012,3338.8,3338.7,0.72693]
[1735749852874,0.4271,3339.0,3338.7,0.72693]
[1735749853075,3.2078,3338.8,3338.7,0.4268]
[1735749853276,3.50792,3338.8,3338.7,0.4268]
[1735749853678,3.20597816,3338.8,3338.7,0.4268]
[1735749853980,0.74279,3339.1,3338.7,0.4268]
[1735749854189,0.4427,3339.1,3339.0,0.3001]
[1735749854382,0.74279,3339.1,3338.9,0.3001]
[1735749855084,0.3001,3339.0,3338.8,0.30011]
[1735749855882,0.3001,3339.0,3338.7,0.4268]
[1735749856179,0.4427,3339.1,3339.0,0.3001]
[1735749856483,3.6445,3339.3,3339.2,0.30008]
[1735749856679,3.94457,3339.3,3339.2,0.30008]
[1735749857684,3.6445,3339.3,3339.2,0.30008]
[1735749857876,3.2078,3339.3,3339.2,0.30008]
[1735749859284,3.50787,3339.3,3339.2,0.30008]
[1735749859479,3.50787,3339.3,3339.1,0.30009]
[1735749859686,3.50787,3339.3,3339.2,0.30008]
[1735749860184,3.50787,3339.3,3338.7,0.4268]
[1735749860378,3.50787,3339.3,3339.1,0.30009]
[1735749860773,5.48682582,3339.3,3338.6,40.8]
[1735749860986,0.30011,3338.9,3338.7,0.30012]
[1735749861486,0.30011,3338.9,3338.8,0.30012]
[1735749861690,0.30011,3338.9,3338.6,0.4365]
[1735749861891,0.4416,3338.8,3338.7,0.30012]
[1735749863194,0.3001,3339.0,3338.9,0.30011]
[1735749864092,3.2078,3339.3,3338.6,0.4365]
[1735749864392,3.50788,3339.3,3338.7,0.75032]
[1735749864688,3.2078,3339.3,3339.2,0.30008]
[1735749864986,3.50787,3339.3,3339.2,0.30008]
[1735749865887,3.2078,3339.3,3339.2,0.30008]
[1735749866288,3.50787,3339.3,3339.1,0.30009]
[1735749866486,3.2078,3339.3,3339.2,0.30008]
[1735749866888,3.50787,3339.3,3338.7,0.75032]
[1735749867090,3.50787,3339.3,3339.1,0.30008]
[1735749867688,3.50787,3339.3,3339.2,0.30008]
[1735749868390,3.2078,3339.3,3339.2,0.30008]
[1735749868793,3.50787,3339.3,3339.2,0.30008]
[1735749869190,3.50787,3339.3,3339.1,0.30008]
[1735749869392,3.50788,3339.3,3339.1,0.30008]
[1735749869794,3.2078,3339.3,3339.2,0.30008]
[1735749869996,3.50787,3339.3,3339.2,0.30008]
[1735749871291,3.2078,3339.3,3339.2,0.30008]
[1735749871497,3.50787,3339.3,3339.2,0.30008]
[1735749871899,0.30009,3339.2,3339.1,0.30008]
[1735749872703,1.37952009,3339.2,3339.1,0.30008]
[1735749872999,3.50788,3339.3,3339.1,0.30008]
[1735749873197,3.50788,3339.3,3339.1,0.30009]
[1735749873601,3.2078,3339.3,3339.1,0.30009]
[1735749873804,3.2078,3339.3,3339.0,0.4692]
[1735749874002,3.50788,3339.3,3339.2,0.30008]
[1735749874403,3.50788,3339.3,3339.0,0.4692]
[1735749874404,3.2078,3339.3,3339.0,0.4692]
[1735749874703,3.50788,3339.3,3339.2,0.30008]
[1735749874996,3.2078,3339.3,3339.0,0.4692]
[1735749875202,3.2078,3339.3,3339.2,0.30008]
[1735749876506,3.50787,3339.3,3339.2,0.30008]
[1735749876700,4.58730009,3339.3,3339.2,0.30008]
[1735749876895,0.30009,3339.2,3339.1,0.30009]
[1735749877402,0.30009,3339.1,3339.0,0.76929]
[1735749877601,4.28723009,3339.3,3338.9,0.30011]
[1735749877807,1.1772,3339.0,3338.9,0.30011]
[1735749878007,1.1772,3339.0,3338.9,0.76938822]
[1735749878714,1.1772,3339.0,3338.9,0.46927822]
[1735749879218,1.1772,3339.0,3338.9,0.76938822]
[1735749879717,1.1772,3339.0,3338.9,0.30011]
[1735749880308,1.1772,3339.0,3338.9,0.76938809]
[1735749881011,0.8771,3339.0,3338.7,0.4591]
[1735749881216,0.30012,3338.9,3338.8,0.46928046]
[1735749881418,1.3431,3339.0,3338.7,0.30013]
[1735749881611,0.30012,3338.8,3338.7,0.30013]
[1735749882011,0.30014,3338.6,3338.5,3.50794]
[1735749882416,0.30014,3338.6,3338.5,3.2078]
[1735749882617,0.76274,3338.6,3338.5,3.2078]
[1735749883912,0.76274,3338.6,3338.1,1.54343009]
[1735749883913,0.4626,3338.6,3338.1,3.2078]
[1735749884113,0.30016,3338.4,3338.3,0.30016]
[1735749884516,2.00783009,3338.5,3338.1,3.2078]
[1735749884717,2.30797009,3338.5,3338.4,0.30015]
[1735749885023,2.30797009,3338.5,3338.3,0.30015]
[1735749885319,0.30015,3338.4,3338.3,0.30015]
[1735749886414,0.30018,3338.1,3338.0,0.30018]
[1735749888417,0.4281,3338.2,3338.0,0.30018]
[1735749888618,0.30018,3338.1,3338.0,0.30018]
[1735749889716,0.72827,3338.2,3338.1,0.30018]
[1735749890023,0.72828,3338.2,3338.1,0.30018]
[1735749890720,0.30018,3338.1,3338.0,0.30018]
[1735749892213,0.72828,3338.2,3337.9,1.97163009]
[1735749892413,0.72828,3338.2,3338.1,0.30018]
[1735749892815,0.9284,3338.5,3337.9,1.97163009]
[1735749893018,0.4653,3338.5,3338.4,0.30015]
[1735749893519,13.4423924,3338.8,3338.7,0.30013]
[1735749893721,0.30013,3338.7,3338.6,0.30013]
[1735749893917,13.1422724,3338.8,3338.6,0.30013]
[1735749893918,11.60064231,3338.8,3338.7,0.30013]
[1735749894223,3.2078,3339.3,3339.2,0.30008]
[1735749894224,12.6800724,3339.3,3339.2,0.30008]
[1735749894520,12.6800724,3339.3,3339.2,41.10008]
[1735749895123,0.3001,3339.1,3338.9,0.3001]
[1735749895316,1.37953009,3339.1,3338.9,0.3001]
[1735749895718,1.37953009,3339.1,3338.7,40.8]
[1735749895719,1.07943009,3339.1,3339.0,0.3001]
[1735749896023,1.37952009,3339.1,3339.0,0.3001]
[1735749896319,0.30009,3339.1,3339.0,0.3001]
[1735749897815,3.17270498,3339.2,3338.6,3.2078]
[1735749898025,0.30013,3338.7,3338.5,0.4591]
[1735749898213,0.8791,3338.6,3338.1,1.193]
[1735749898414,0.30016,3338.4,3338.2,0.30017]
[1735749898722,0.30016,3338.3,3338.2,0.30017]
[1735749898923,0.30016,3338.4,3338.3,0.30016]
[1735749900817,0.8791,3338.6,3338.1,0.8997]
[1735749901013,0.30015,3338.5,3338.4,0.30015]
[1735749901220,0.30016,3338.4,3338.3,0.30016]
[1735749903326,0.30016,3338.4,3338.1,0.8997]
[1735749903529,0.30016,3338.4,3338.2,0.30017]
[1735749904025,0.8791,3338.6,3338.2,0.30017]
[1735749904223,0.30017,3338.3,3338.2,0.30017]
[1735749904727,0.30016,3338.4,3338.3,0.30016]
[1735749905926,0.30016,3338.4,3338.2,0.30016]
[1735749906329,0.30016,3338.3,3338.2,0.30016]
[1735749908627,0.4546,3338.5,3338.1,0.8997]
[1735749908827,0.30016,3338.4,3338.3,0.30016]
[1735749910331,0.30017,3338.3,3338.2,0.30017]
[1735749910732,0.4546,3338.5,3338.2,0.30017]
[1735749910733,0.75475,3338.5,3338.2,0.30017]
[1735749911033,0.30016,3338.4,3338.3,0.30016]
[1735749912634,0.8791,3338.6,3338.5,0.30014]
[1735749912933,0.30014,3338.7,3338.6,0.30013]
[1735749912934,0.30013,3338.7,3338.6,0.30013]
[1735749913125,0.30014,3338.6,3338.5,0.30014]
[1735749913723,0.30013,3338.7,3338.6,0.30013]
[1735749913924,0.453,3338.8,3338.1,2.73670498]
[1735749914134,0.76031,3339.0,3338.9,0.30011]
[1735749914339,0.4602,3339.0,3338.9,0.30011]
[1735749915033,0.7603,3339.0,3338.9,0.30011]
[1735749915429,0.4602,3339.0,3338.9,0.30011]
[1735749915636,0.7603,3339.0,3338.9,0.30011]
[1735749915839,0.75309,3339.2,3339.1,0.30009]
[1735749916040,0.453,3339.2,3339.1,0.30009]
[1735749916230,3.2078,3339.3,3339.2,0.30008]
[1735749916437,11.60064231,3339.4,3339.3,0.30007]
[1735749916935,0.30005,3339.6,3339.5,0.30005]
[1735749917135,3.2078,3339.8,3339.7,0.30004]
[1735749917338,3.50783,3339.8,3339.7,0.30004]
[1735749917639,0.30004,3339.7,3339.2,41.2258]
[1735749917837,0.76364,3339.7,3339.5,0.30005]
[1735749918039,0.4636,3339.7,3339.5,0.30005]
[1735749918240,0.30005,3339.6,3339.5,0.30005]
[1735749918441,0.4636,3339.7,3339.6,0.30005]
[1735749918945,0.76364,3339.7,3339.6,0.30005]
[1735749919138,0.4636,3339.7,3339.6,0.30005]
[1735749920233,3.2078,3339.8,3339.7,0.30004]
[1735749921036,3.2078,3339.8,3339.2,2.70640498]
[1735749921243,0.30006,3339.5,3339.3,0.30007]
[1735749921736,0.30005,3339.6,3339.4,0.30006]
[1735749921935,3.2078,3339.8,3339.4,0.30006]
[1735749922436,0.30004,3339.7,3339.5,0.30005]
[1735749922837,0.30004,3339.7,3339.6,0.30005]
[1735749924245,3.2078,3339.8,3339.3,0.4385]
[1735749924438,3.50783,3339.8,3339.3,0.4385]
[1735749924642,3.50783,3339.8,3339.6,0.30004]
[1735749924838,0.30004,3339.7,3339.6,0.30004]
[1735749925640,3.50783,3339.8,3339.7,0.30004]
[1735749925839,3.50783,3339.8,3339.6,0.30004]
[1735749926439,3.50783,3339.8,3339.3,0.4385]
[1735749926745,3.50783,3339.8,3339.7,0.30004]
[1735749927043,3.2078,3339.8,3339.7,0.30004]
[1735749928249,0.76671,3340.1,3339.5,3.2078]
[1735749928440,0.4376,3340.2,3339.8,2.28060498]
[1735749928741,14.80844231,3340.3,3340.1,0.3]
[1735749929044,0.3,3340.1,3340.0,0.30001]
[1735749929550,0.3,3340.2,3339.9,0.8838]
[1735749929748,3.2078,3340.3,3340.0,0.4341]
[1735749930446,0.29998,3340.4,3340.3,0.29998]
[1735749930649,0.61327,3340.5,3340.1,0.3]
[1735749930838,0.61327,3340.5,3340.3,0.29997]
[1735749931039,0.61327,3340.5,3340.4,0.29997]
[1735749931241,0.29999,3340.2,3340.1,0.3]
[1735749931443,0.3,3340.2,3340.1,0.3]
[1735749931645,0.29999,3340.3,3340.0,3.2078]
[1735749931841,0.29999,3340.3,3340.2,0.29999]
[1735749932050,0.29998,3340.4,3340.3,0.29998]
[1735749932245,0.61327,3340.5,3340.4,0.29997]
[1735749934451,0.61327,3340.5,3339.9,1.18794]
[1735749934656,0.61327,3340.5,3340.3,0.29998]
[1735749934947,0.3133,3340.5,3340.1,0.3]
[1735749935252,0.29999,3340.2,3340.1,0.3]
[1735749935947,0.3,3340.1,3340.0,0.30001]
[1735749936753,0.30001,3340.0,3339.9,0.73792]
[1735749936947,0.30001,3340.0,3339.9,0.4379]
[1735749937347,0.74994,3340.4,3339.9,0.4379]
[1735749937651,0.30001,3340.1,3340.0,0.30001]
[1735749938047,0.74994,3340.4,3339.9,0.4379]
[1735749938048,0.30001,3340.0,3339.9,0.4379]
[1735749938646,0.30005,3339.6,3339.5,5.48840498]
[1735749938846,0.30005,3339.6,3339.5,3.50785]
[1735749940553,1.20993,3340.1,3339.5,3.2078]
[1735749940756,0.30004,3339.7,3339.6,0.30004]
[1735749941456,0.4599,3340.1,3339.5,5.48840498]
[1735749941648,0.30002,3340.0,3339.9,0.30001]
[1735749942250,0.4599,3340.1,3340.0,0.30001]
[1735749942552,0.4341,3340.2,3339.7,0.75009]
[1735749942749,0.4341,3340.2,3340.1,0.3]
[1735749942948,0.73409,3340.2,3340.1,0.3]
[1735749943149,0.4341,3340.2,3340.1,41.1]
[1735749944256,3.2078,3340.3,3340.2,0.29999]
[1735749946058,3.50778,3340.3,3340.2,0.29999]
[1735749947964,3.2078,3340.3,3340.2,0.29999]
[1735749951065,0.7421,3340.5,3340.4,0.29997]
[1735749951969,0.7421,3340.5,3340.4,0.75517]
[1735749952366,0.3133,3340.5,3340.4,0.75517]
[1735749953574,0.3133,3340.5,3340.4,3.03577498]
[1735749958568,0.3133,3340.5,3340.4,43.83577498]
[1735749960374,0.3133,3340.5,3340.4,0.29997]
[1735749960875,1.181,3340.5,3340.4,0.29997]
[1735749965977,1.48097,3340.5,3340.4,0.29997]
[1735749969777,1.48097,3340.5,3340.2,3.2078]
[1735749969778,1.181,3340.5,3340.2,3.2078]
[1735749969982,0.74508,3340.4,3340.3,0.29997]
[1735749975185,0.4451,3340.4,3340.3,0.29997]
[1735749975986,0.74507,3340.4,3340.3,0.29997]
[1735749976190,1.181,3340.5,3340.1,5.48840498]
[1735749976383,1.181,3340.5,3340.4,0.29997]
[1735749978184,1.181,3340.5,3340.4,0.76902029]
[1735749979678,0.3133,3340.5,3340.4,0.76902029]
[1735749979986,0.3133,3340.5,3340.4,3.04962527]
[1735749984284,0.3133,3340.5,3340.4,1.84728703]
[1735749985588,0.3133,3340.5,3340.4,3.03828703]
[1735749985889,0.9104,3341.1,3341.0,0.29992]
[1735749986092,1.21031,3341.1,3341.0,0.29992]
[1735749986692,0.29993,3341.0,3340.9,0.29992]
[1735749987489,0.29995,3340.8,3340.7,0.29994]
[1735749990292,0.29999,3340.3,3340.2,0.29999]
[1735749990493,1.07826674,3340.6,3340.1,3.2078]
[1735749990691,0.29999,3340.3,3340.2,0.29999]
[1735749991200,0.29999,3340.2,3340.1,3.50779]
[1735749991496,0.76619,3340.2,3340.1,3.50779]
[1735749992190,0.4662,3340.2,3340.1,3.50779]
[1735749993098,0.4338,3340.5,3340.4,0.29997]
[1735749993291,0.76614,3340.8,3340.7,0.29995]
[1735749993793,0.4662,3340.8,3340.2,1.63369]
[1735749993995,0.29996,3340.6,3340.5,0.29996]
[1735749994796,0.4662,3340.8,3340.2,1.63369]
[1735749994998,0.29996,3340.7,3340.6,0.29995]
[1735749995195,0.4662,3340.8,3340.2,0.8837]
[1735749995394,0.29996,3340.6,3340.5,0.29996]
[1735749995594,0.4662,3340.8,3340.2,0.8837]
[1735749995803,0.29995,3340.7,3340.6,0.29995]
[1735749996994,11.99545838,3340.7,3340.6,0.29995]
[1735750000502,11.69550838,3340.7,3340.6,0.29995]
[1735750000994,11.99545838,3340.7,3340.6,0.29995]
[1735750003004,11.69550838,3340.7,3340.2,0.8837]
[1735750003201,11.69550838,3340.7,3340.5,0.29996]
[1735750003202,0.29996,3340.6,3340.5,0.29996]
[1735750004909,0.29997,3340.5,3340.4,0.29997]
[1735750005109,11.69550838,3340.7,3340.3,3.2078]
[1735750005405,0.72619,3340.4,3340.3,0.29998]
[1735750005910,0.4262,3340.4,3340.0,0.8481]
[1735750006101,0.29999,3340.3,3340.2,0.29999]
[1735750006301,0.74319,3340.3,3340.2,0.29999]
[1735750008509,0.4432,3340.3,3340.2,0.29999]
[1735750008709,0.74318,3340.3,3340.2,0.29999]
[1735750009314,0.4432,3340.3,3340.2,0.29999]
[1735750009613,0.74318,3340.3,3340.2,0.29999]
[1735750009811,0.72618,3340.4,3340.0,3.12662876]
[1735750010007,0.72618,3340.4,3340.3,0.29998]
[1735750010208,0.4262,3340.4,3340.3,0.29998]
[1735750010517,0.72617,3340.4,3340.3,0.29998]
[1735750010706,0.72617,3340.4,3340.3,3.50778]
[1735750011911,0.72617,3340.4,3340.3,0.29998]
[1735750019919,0.4262,3340.4,3340.3,0.29998]
[1735750020121,0.72617,3340.4,3340.3,0.29998]
[1735750020326,0.3,3340.3,3340.2,0.29999]
[1735750020923,0.4262,3340.4,3339.9,3.2078]
[1735750021125,0.30001,3340.1,3340.0,0.3]
[1735750021427,0.30001,3340.0,3339.9,3.50782]
[1735750021725,0.8825,3340.0,3339.7,41.6771]
[1735750021925,0.8825,3340.0,3339.7,1.17713]
[1735750021926,0.30003,3339.8,3339.7,1.17713]
[1735750022132,0.75033,3339.9,3339.8,0.30003]
[1735750023230,0.75033,3339.9,3339.5,0.4302]
[1735750023231,0.4503,3339.9,3339.5,0.4302]
[1735750023431,1.52882872,3339.9,3339.6,0.30005]
[1735750023729,0.30005,3339.7,3339.6,0.30005]
[1735750024727,1.52882872,3339.9,3339.5,0.4302]
[1735750024925,0.4577,3339.6,3339.5,0.73026]
[1735750025323,0.4577,3339.6,3339.4,40.8]
[1735750025523,0.30009,3339.2,3338.7,3.50792]
[1735750025723,0.30009,3339.2,3338.7,4.28632872]
[1735750025724,0.3001,3339.0,3338.7,4.28632872]
[1735750025933,1.63459,3339.1,3338.7,4.28632872]
[1735750026234,11.69550838,3338.8,3338.7,4.28632872]
[1735750026433,11.69550838,3338.8,3338.7,4.58645872]
[1735750027333,11.69550838,3338.8,3338.7,4.28632872]
[1735750028234,11.69550838,3338.8,3338.5,40.8]
[1735750028434,11.69550838,3338.8,3338.5,41.10014]
[1735750028435,11.99562838,3338.8,3338.5,41.10014]
[1735750029827,11.69550838,3338.8,3338.5,40.8]
[1735750030024,14.90330838,3338.8,3337.7,1.3386]
[1735750030224,0.30017,3338.2,3337.8,0.30021]
[1735750030436,0.30017,3338.2,3337.9,40.8]
[1735750030935,0.30019,3338.1,3337.9,40.8]
[1735750032336,0.30019,3338.0,3337.9,40.8]
[1735750034840,0.8668,3338.2,3337.9,40.8]
[1735750036139,0.30019,3338.0,3337.9,40.8]
[1735750036837,0.3002,3337.9,3337.5,0.75223]
[1735750037041,0.8668,3338.2,3337.5,1.17543]
[1735750037236,0.30021,3337.8,3337.5,1.17543]
[1735750037634,0.30021,3337.8,3337.6,40.8]
[1735750038138,1.10426433,3338.2,3337.6,40.8]
[1735750038340,0.30021,3337.9,3337.6,40.8]
[1735750038534,0.30021,3337.9,3337.6,41.10022]
[1735750038733,0.4284,3338.2,3338.1,0.30018]
[1735750038938,0.4284,3338.2,3337.7,2.28061565]
[1735750038939,0.4613,3338.3,3338.2,0.30017]
[1735750039336,0.4291,3338.7,3338.2,40.8]
[1735750039535,0.4291,3338.7,3338.3,1.2866]
[1735750039744,14.90330838,3338.8,3338.7,0.30013]
[1735750040240,14.90330838,3338.8,3338.6,0.30013]
[1735750040740,0.30013,3338.7,3338.4,0.30015]
[1735750041335,14.90330838,3338.8,3338.7,0.30013]
[1735750041542,3.2078,3338.8,3338.5,0.30014]
[1735750041744,0.30015,3338.5,3338.3,0.8595]
[1735750042245,0.30015,3338.5,3338.3,1.15966]
[1735750042437,0.30014,3338.6,3338.3,0.8595]
[1735750042634,3.2078,3338.8,3338.6,0.30013]
[1735750042946,0.30008,3339.3,3339.0,0.30009]
[1735750043142,0.30009,3339.2,3339.1,0.4565]
[1735750043334,0.30011,3339.0,3338.7,0.73782]
[1735750043645,0.7286,3339.1,3338.9,0.30011]
[1735750044047,0.30011,3338.9,3338.7,1.19432]
[1735750044345,0.30012,3338.8,3338.7,0.8942]
[1735750044544,0.30012,3338.8,3338.7,0.4565]
[1735750044841,0.30014,3338.6,3338.4,0.75825]
[1735750045047,0.30014,3338.6,3338.5,0.4565]
[1735750045450,3.6341,3339.0,3338.3,0.4363]
[1735750045753,0.30015,3338.4,3338.3,0.4363]
[1735750046252,3.6341,3339.0,3338.3,0.4363]
[1735750046451,0.30015,3338.4,3338.2,41.10017]
[1735750046746,0.30017,3338.2,3338.1,0.4565]
[1735750047445,0.4587,3338.3,3338.1,0.4565]
[1735750047650,0.30017,3338.2,3338.1,0.4565]
[1735750049351,0.442,3338.8,3338.1,0.4565]
[1735750049554,0.442,3338.8,3338.3,0.30016]
[1735750049555,0.30015,3338.5,3338.3,0.30016]
[1735750049851,3.2078,3339.4,3338.4,3.2078]
[1735750050154,0.30009,3339.1,3338.9,0.30011]
[1735750050355,0.30009,3339.1,3339.0,0.4529]
[1735750050751,0.30009,3339.1,3339.0,0.753]
[1735750050957,0.30009,3339.2,3339.0,0.753]
[1735750051154,0.30009,3339.1,3339.0,0.4529]
[1735750055963,0.30009,3339.1,3339.0,0.753]
[1735750057860,0.30009,3339.1,3339.0,0.4529]
[1735750059352,0.30009,3339.1,3339.0,0.753]
[1735750059754,3.6375,3339.4,3339.3,0.30007]
[1735750059957,3.2078,3339.4,3339.3,0.30007]
[1735750061469,3.50786,3339.4,3339.3,0.30007]
[1735750063260,3.2078,3339.4,3339.1,0.4254]
[1735750063569,0.30008,3339.3,3339.2,0.30008]
[1735750064662,3.50787,3339.4,3339.3,0.30007]
[1735750067069,0.30007,3339.4,3339.3,0.30007]
[1735750069463,3.6581,3339.7,3339.2,0.4331]
[1735750069768,0.75968,3339.3,3339.1,0.30009]
[1735750070563,0.75968,3339.3,3339.0,0.8798]
[1735750070564,0.4596,3339.3,3339.0,0.8798]
[1735750070764,3.6581,3339.7,3339.0,0.8798]
[1735750070964,0.30006,3339.5,3339.3,0.30007]
[1735750071365,0.73715,3339.6,3339.3,0.30007]
[1735750071561,0.4371,3339.6,3339.0,3.16041565]
[1735750071767,0.4371,3339.6,3339.5,0.30006]
[1735750072067,0.73715,3339.6,3339.4,0.30006]
[1735750072261,0.73715,3339.6,3339.5,0.4672]
[1735750072461,0.4371,3339.6,3339.5,0.76726]
[1735750072661,3.2078,3340.1,3339.9,0.30001]
[1735750072865,0.861,3340.3,3339.8,3.2078]
[1735750073067,0.861,3340.3,3340.1,0.3]
[1735750073575,1.16098,3340.3,3340.1,0.3]
[1735750074063,0.861,3340.3,3340.1,0.29999]
[1735750074264,1.16099,3340.3,3340.1,0.29999]
[1735750074474,0.861,3340.3,3340.0,0.4332]
[1735750074775,1.16099,3340.3,3340.0,0.7332]
[1735750075170,0.30001,3340.0,3339.9,40.8]
[1735750075471,0.30004,3339.7,3339.6,0.8777]
[1735750075672,3.2078,3340.1,3339.6,1.17775]
[1735750075673,0.30003,3339.8,3339.6,1.17775]
[1735750076064,3.6661,3340.1,3339.6,0.8777]
[1735750076268,3.6661,3340.1,3339.7,0.30003]
[1735750076565,0.30002,3340.0,3339.7,0.30004]
[1735750076763,0.30002,3339.9,3339.7,0.30004]
[1735750077867,0.30003,3339.8,3339.6,1.17774]
[1735750078170,0.30003,3339.8,3339.6,0.8777]
[1735750078371,0.30003,3339.8,3339.7,0.30004]
[1735750078684,3.6661,3340.1,3339.7,0.30004]
[1735750078969,0.30003,3339.8,3339.7,0.30004]
[1735750079169,0.30003,3339.8,3339.6,0.8777]
[1735750079371,0.30003,3339.8,3339.6,1.17774]
[1735750079672,0.30003,3339.9,3339.7,0.30003]
[1735750079878,0.30003,3339.8,3339.7,0.30003]
[1735750080083,0.74813,3339.8,3339.7,0.30003]
[1735750080373,0.30004,3339.7,3339.6,1.17774]
[1735750080777,0.30004,3339.7,3339.6,0.72714]
[1735750080972,0.75754,3339.7,3339.6,0.72714]
[1735750081677,0.75754,3339.7,3339.6,0.30004]
[1735750082280,0.4575,3339.7,3339.5,0.4332]
[1735750086982,0.4575,3339.7,3339.4,4.3978]
[1735750089681,0.4575,3339.7,3339.5,0.46917503]
[1735750090187,0.4575,3339.7,3339.4,4.3978]
[1735750091686,0.4575,3339.7,3339.5,0.46917584]
[1735750091984,0.4575,3339.7,3339.4,4.3978]
[1735750092385,0.4575,3339.7,3339.5,0.46917573]